bitfinex/quotes_ETHUSD_20240717
["timestamp","ask_amount","ask_price","bid_price","bid_amount"]
[1721233392420,0.06326518,3405.9,3405.2,0.005]
[1721233392756,2.99940518,3405.9,3405.2,0.005]
[1721233392919,2.93625,3405.7,3405.2,0.005]
[1721233393119,0.02923115,3405.6,3405.2,0.005]
[1721233393353,2.9700587,3405.6,3405.2,0.005]
[1721233393557,2.93646,3405.5,3405.2,0.005]
[1721233393755,2.97006324,3405.5,3405.2,0.005]
[1721233394055,0.03360324,3405.5,3405.2,0.005]
[1721233394256,0.02923115,3405.4,3405.2,0.005]
[1721233394429,2.96991599,3405.3,3405.2,0.005]
[1721233394617,8.40290599,3405.3,3405.2,0.005]
[1721233394817,11.95290599,3405.3,3405.2,0.005]
[1721233395016,2.93697,3404.9,3403.9,2.9378]
[1721233395267,0.06242707,3404.8,3403.0,2.93857]
[1721233395424,0.06242707,3404.8,3402.5,9.78740156]
[1721233395425,2.96636115,3404.7,3403.7,2.9379]
[1721233395757,0.06199427,3404.6,3403.9,2.93774]
[1721233395915,0.03276312,3404.6,3404.0,2.9377]
[1721233396321,0.02923115,3404.9,3404.0,2.9377]
[1721233396836,0.03279658,3404.8,3404.2,2.93754]
[1721233397037,0.03279658,3404.8,3404.3,0.293754]
[1721233397247,2.4964,3405.3,3404.7,2.93711]
[1721233397530,2.93617,3405.8,3404.9,2.93692]
[1721233397720,0.02923115,3405.7,3404.7,2.93709]
[1721233397925,0.03308577,3405.6,3404.7,2.93709]
[1721233398161,0.03308577,3405.6,3404.8,2.93701]
[1721233398674,0.03352022,3405.5,3404.9,0.05873435]
[1721233398817,2.93432,3408.0,3404.9,0.05873435]
[1721233398818,2.3793,3406.7,3405.7,2.93619]
[1721233399018,0.06322605,3406.6,3406.0,2.93598]
[1721233399669,0.0339949,3406.6,3405.0,2.93682]
[1721233399960,2.3793,3406.7,3406.2,2.93581]
[1721233400259,0.02923115,3406.6,3405.9,2.93607]
[1721233400560,0.03258494,3406.5,3406.0,2.93597]
[1721233400755,0.03258494,3406.5,3406.1,2.9359]
[1721233400956,0.03258494,3406.5,3406.4,2.93565]
[1721233401160,0.03258494,3406.5,3406.4,5.8713]
[1721233401346,2.4153,3407.5,3406.6,2.93544]
[1721233401668,2.99485255,3407.4,3406.5,2.93555]
[1721233401822,0.06005255,3407.4,3406.5,2.93555]
[1721233402367,0.06005255,3407.4,3406.6,2.93547]
[1721233402722,0.06005255,3407.4,3406.5,2.93555]
[1721233403054,0.06005255,3407.4,3406.3,2.93573]
[1721233403055,0.06005255,3407.4,3406.6,2.93547]
[1721233403434,0.0308214,3407.4,3406.6,2.93547]
[1721233403646,0.02923115,3407.3,3406.4,2.93556]
[1721233403852,0.03046073,3407.2,3406.1,3.22947]
[1721233404043,0.05969188,3407.2,3406.1,2.93588]
[1721233404243,0.05969188,3407.2,3405.5,2.93635]
[1721233404244,2.93545,3406.7,3405.5,2.93635]
[1721233404461,2.374,3406.5,3405.6,2.93633]
[1721233404634,2.374,3406.5,3404.4,3.552]
[1721233404635,0.05959897,3406.4,3405.5,2.93641]
[1721233404972,2.99526897,3406.4,3405.1,2.93671]
[1721233405336,2.99526897,3406.4,3405.3,2.93657]
[1721233405672,2.96603782,3406.4,3405.3,2.93657]
[1721233405878,0.03036782,3406.4,3405.7,2.93617]
[1721233406073,0.05959897,3406.4,3405.8,2.9361]
[1721233406272,0.03036782,3406.4,3405.9,2.93606]
[1721233406443,2.2789,3407.0,3406.1,2.93586]
[1721233406639,0.03068973,3406.9,3406.0,2.93599]
[1721233406872,0.03068973,3406.9,3405.1,0.293671]
[1721233406873,0.02923115,3406.8,3406.1,2.93588]
[1721233407052,2.2789,3407.0,3406.0,2.93598]
[1721233407053,0.03064668,3406.7,3406.0,2.93598]
[1721233407250,2.2789,3407.0,3406.3,2.93573]
[1721233407439,0.03074391,3406.9,3406.3,2.93573]
[1721233407857,0.03074391,3406.9,3406.4,2.93563]
[1721233408248,0.05997506,3406.9,3406.1,2.93589]
[1721233408452,2.368,3406.8,3403.8,2.3477]
[1721233408673,3.09,3406.5,3404.8,2.93697]
[1721233408862,3.09,3406.5,3404.9,8.08643601]
[1721233408863,2.93613,3405.9,3404.9,8.08643601]
[1721233409061,0.02923115,3405.8,3405.0,9.51586401]
[1721233409260,0.02923115,3406.1,3405.3,2.93654]
[1721233409583,0.0299779,3406.0,3405.4,2.9365]
[1721233409894,0.02923115,3406.0,3404.9,2.93687]
[1721233410081,0.0300033,3405.9,3405.0,2.93684]
[1721233410385,0.02923115,3405.8,3405.0,2.93684]
[1721233410757,0.02995784,3405.7,3405.0,2.93684]
[1721233410998,0.02995784,3405.7,3404.4,2.93733]
[1721233411206,0.02995784,3405.7,3405.3,2.93659]
[1721233411357,0.02923115,3405.8,3405.3,2.93659]
[1721233411556,0.02993511,3405.6,3405.3,2.93659]
[1721233411885,0.02991237,3405.5,3405.3,2.93659]
[1721233412089,3.0,3406.2,3405.3,2.93659]
[1721233412255,0.03004876,3406.1,3405.3,2.93659]
[1721233412458,0.03004876,3406.1,3405.4,2.93649]
[1721233412690,0.03004876,3406.1,3404.7,2.93703]
[1721233412691,0.03004876,3406.1,3405.2,2.93662]
[1721233412858,0.03004876,3406.1,3404.6,2.93714]
[1721233412859,0.02923115,3406.0,3404.6,2.93714]
[1721233413060,3.09,3405.5,3404.0,2.93764]
[1721233413282,2.9367,3405.2,3404.2,2.93753]
[1721233413487,2.93686,3405.0,3404.0,2.93767]
[1721233413759,2.93686,3405.0,3403.6,2.93806]
[1721233413760,2.93709,3404.8,3403.6,2.93806]
[1721233414032,0.02923115,3404.7,3403.8,2.93788]
[1721233414237,0.02971623,3404.7,3403.9,2.93779]
[1721233414538,3.0,3405.4,3404.4,2.9373]
[1721233414703,4.42180043,3406.6,3404.5,2.93728]
[1721233414704,0.02958513,3404.6,3404.5,2.93728]
[1721233414920,8.32202,3406.0,3404.5,2.93728]
[1721233414921,0.02923115,3405.8,3405.0,2.93679]
[1721233415120,2.386,3406.0,3405.0,2.93679]
[1721233415121,0.02975212,3405.7,3405.0,2.9368]
[1721233415319,2.386,3404.6,3403.6,2.93804]
[1721233415518,0.05876364,3404.5,3403.7,2.93794]
[1721233415695,0.02923115,3404.5,3403.7,2.93794]
[1721233415900,0.02944955,3404.4,3403.7,2.93794]
[1721233416098,0.02923115,3404.3,3403.7,2.93794]
[1721233416296,0.02923115,3404.3,3403.6,0.293804]
[1721233416297,0.02940759,3404.2,3403.6,0.293804]
[1721233416496,0.02940759,3404.2,3403.1,2.93846]
[1721233416497,0.05863874,3404.2,3403.1,2.93846]
[1721233416820,2.96697759,3404.2,3403.2,2.93832]
[1721233417027,2.96697759,3404.2,3403.3,2.9383]
[1721233417344,2.96697759,3404.2,3402.4,0.005]
[1721233417345,2.3989,3403.9,3402.4,0.005]
[1721233417510,2.93806,3403.6,3402.4,0.005]
[1721233417846,0.05842042,3403.5,3402.4,0.005]
[1721233418136,0.05842042,3403.5,3402.7,2.93879]
[1721233418296,0.05842042,3403.5,3402.8,2.93869]
[1721233418497,0.05842042,3403.5,3402.6,2.93888]
[1721233419332,2.3989,3403.4,3402.5,2.93901]
[1721233419518,0.02923115,3403.3,3402.5,2.93897]
[1721233419725,0.02911626,3403.2,3402.5,0.294397]
[1721233419945,8.33668,3404.0,3402.9,5.8773]
[1721233420160,0.02767445,3403.1,3403.0,2.93853]
[1721233420437,0.02923115,3403.9,3403.3,2.93832]
[1721233420837,0.02783377,3403.8,3403.4,2.9382]
[1721233421133,2.3989,3404.0,3403.5,2.93813]
[1721233421312,0.05708768,3403.9,3403.5,2.93813]
[1721233421509,0.02785653,3403.9,3403.8,2.93789]
[1721233421710,0.02923115,3404.6,3404.0,2.93767]
[1721233421927,0.02851837,3404.5,3403.0,2.93858]
[1721233422100,2.3501,3405.4,3404.4,2.93737]
[1721233422302,2.3501,3405.4,3404.7,2.93711]
[1721233422303,0.05666319,3405.3,3404.7,2.93711]
[1721233422622,0.02743204,3405.3,3404.8,2.93702]
[1721233422823,0.02923115,3405.2,3404.8,2.93702]
[1721233423011,0.02743204,3405.3,3404.8,2.93702]
[1721233423210,0.02762093,3405.1,3405.0,2.93685]
[1721233423522,0.02762093,3405.1,3404.8,2.93702]
[1721233423523,2.3501,3406.0,3405.1,2.93677]
[1721233423732,0.05702184,3405.9,3405.1,2.93677]
[1721233424438,0.02779069,3405.9,3405.3,2.93659]
[1721233425054,0.05702184,3405.9,3405.3,2.93659]
[1721233425350,0.02779069,3405.9,3405.3,2.93659]
[1721233425512,0.02779069,3405.9,3405.7,2.93618]
[1721233425711,1.147,3406.6,3406.3,2.93569]
[1721233425934,0.02728395,3406.5,3406.3,2.93569]
[1721233426103,2.2904,3406.7,3406.3,2.93569]
[1721233426307,0.02716266,3406.6,3406.3,2.93569]
[1721233426552,2.2904,3406.7,3406.3,2.93569]
[1721233426917,2.2904,3406.7,3406.1,2.9359]
[1721233426918,0.02718666,3406.6,3406.1,2.9359]
[1721233427118,2.2904,3406.7,3406.3,2.93572]
[1721233427335,0.02759227,3406.6,3406.3,2.93572]
[1721233427517,2.2904,3406.7,3406.2,2.9358]
[1721233427708,0.05682342,3406.6,3405.9,2.93607]
[1721233427906,0.05682342,3406.6,3406.0,2.93591]
[1721233428142,0.05682342,3406.6,3406.1,2.9359]
[1721233428551,0.02759227,3406.6,3406.3,2.93573]
[1721233428928,5.93491,3407.3,3406.3,2.93573]
[1721233429116,0.05693302,3407.2,3406.3,2.93573]
[1721233429456,2.93515,3407.0,3405.9,2.93601]
[1721233429660,0.02923115,3406.9,3405.9,2.93601]
[1721233429953,0.02923115,3406.9,3404.9,3.0]
[1721233429954,2.93533,3406.8,3405.8,2.93615]
[1721233430178,2.93549,3406.6,3405.6,2.93633]
[1721233430468,2.93549,3406.6,3404.6,2.2674]
[1721233430469,2.40143115,3406.5,3405.5,2.93641]
[1721233430747,2.42774882,3406.5,3405.6,2.93633]
[1721233430908,2.42774882,3406.5,3405.7,2.93625]
[1721233431112,2.42774882,3406.5,3405.8,2.93616]
[1721233431317,0.02923115,3406.4,3405.9,2.93607]
[1721233431567,0.02644034,3406.3,3405.9,2.93607]
[1721233432061,0.02644034,3406.3,3406.0,2.93598]
[1721233432211,0.02644034,3406.3,3406.1,2.9359]
[1721233432408,0.02644034,3406.3,3405.9,2.93607]
[1721233432409,0.02923115,3406.8,3405.7,2.93618]
[1721233432629,0.02641763,3406.2,3405.5,2.93641]
[1721233432928,0.02607349,3406.1,3405.8,2.93616]
[1721233433128,0.02923115,3406.7,3405.6,2.93632]
[1721233433327,0.02650846,3406.6,3405.7,2.93624]
[1721233433528,0.02923115,3406.5,3405.8,2.93615]
[1721233433863,0.02646305,3406.4,3405.8,2.93615]
[1721233434454,2.93532,3406.8,3405.8,2.93615]
[1721233434654,0.02644034,3406.3,3405.4,2.93649]
[1721233434857,2.93548,3406.6,3405.7,2.93623]
[1721233435043,0.02641763,3406.2,3405.7,2.93623]
[1721233435244,6.09,3407.0,3404.6,2.2674]
[1721233435245,3.48505,3407.1,3406.1,2.93589]
[1721233435463,2.96436115,3407.0,3406.1,2.93589]
[1721233435773,0.02923115,3407.0,3406.1,2.93589]
[1721233435936,0.02670857,3406.9,3406.1,2.93589]
[1721233436131,2.3035,3407.4,3406.4,2.93563]
[1721233436337,0.02679936,3407.3,3406.4,2.93563]
[1721233436636,0.02923115,3407.2,3406.4,2.93563]
[1721233436837,0.02923115,3407.2,3406.6,2.93547]
[1721233437155,0.02923115,3407.2,3405.9,2.93608]
[1721233437156,0.02675397,3407.1,3406.5,2.93555]
[1721233437675,0.02675397,3407.1,3406.4,2.93564]
[1721233437676,0.02923115,3407.0,3406.4,2.93564]
[1721233437872,0.02923115,3407.0,3405.4,2.93649]
[1721233437873,0.02923115,3407.0,3406.5,2.93555]
[1721233438037,0.02670857,3406.9,3406.5,2.93555]
[1721233438945,0.02670857,3406.9,3406.3,2.93567]
[1721233439145,0.02670857,3406.9,3406.4,2.93563]
[1721233439969,0.02923115,3407.2,3406.4,2.93563]
[1721233440194,0.02923115,3407.2,3406.6,2.93546]
[1721233440195,0.02668587,3406.8,3406.6,2.93546]
[1721233440391,0.02923115,3407.2,3406.4,2.93558]
[1721233440554,0.02666317,3406.7,3406.3,2.93572]
[1721233440753,0.02923115,3407.2,3406.3,2.93573]
[1721233440949,0.02667594,3406.6,3406.4,2.93564]
[1721233441156,0.02923115,3407.2,3406.5,2.93556]
[1721233441485,0.02678943,3407.1,3406.0,2.93593]
[1721233441686,2.93514,3407.0,3406.1,2.93587]
[1721233441860,0.05592113,3406.9,3406.1,2.93587]
[1721233442263,0.05592113,3406.9,3405.0,2.93682]
[1721233442264,0.05592113,3406.9,3406.2,2.93582]
[1721233442457,0.02668998,3406.9,3406.5,2.93554]
[1721233442954,0.0266012,3406.8,3406.5,0.293554]
[1721233443303,0.0266012,3406.8,3405.8,2.2959]
[1721233443304,2.3144,3408.1,3407.3,2.93487]
[1721233443599,0.0269396,3408.0,3407.3,2.93487]
[1721233444093,0.0269396,3408.0,3407.5,2.93469]
[1721233444687,0.0269396,3408.0,3407.6,2.9346]
[1721233445198,0.02606949,3407.9,3407.6,2.9346]
[1721233445366,0.02606949,3407.9,3406.9,2.93517]
[1721233445367,0.02606949,3407.9,3407.4,2.93472]
[1721233445570,2.96308115,3408.5,3407.3,2.93479]
[1721233445755,2.96308115,3408.5,3406.4,2.9356]
[1721233445756,0.0260588,3407.8,3407.6,2.9346]
[1721233445956,0.02923115,3408.6,3407.6,2.9346]
[1721233446197,0.02923115,3408.6,3407.7,2.93451]
[1721233446198,0.02599486,3408.5,3407.7,2.93451]
[1721233446393,0.02923115,3408.4,3407.5,2.93467]
[1721233446693,0.02923115,3408.4,3407.7,2.93447]
[1721233446894,0.02597348,3408.3,3407.7,2.93447]
[1721233447604,0.02580317,3408.2,3407.8,2.93444]
[1721233447972,0.02923115,3408.6,3407.8,0.586891]
[1721233448167,0.2038,3422.3,3409.4,2.93305]
[1721233448168,3.18260043,3410.5,3409.4,2.93305]
[1721233448394,3.18260043,3410.5,3407.9,2.4821]
[1721233448395,2.3128,3410.5,3409.0,3.379]
[1721233448598,2.3128,3410.5,3409.1,3.0]
[1721233448828,2.93083,3412.0,3409.9,2.9326]
[1721233448829,2.93178,3410.9,3409.9,2.9326]
[1721233449103,2.3914,3411.5,3410.0,2.93254]
[1721233449104,2.93134,3411.4,3410.0,2.93254]
[1721233449310,2.3914,3411.5,3410.3,2.93227]
[1721233449535,2.3914,3411.5,3409.5,3.0]
[1721233449681,2.3914,3411.5,3410.4,2.93212]
[1721233450011,2.3914,3411.5,3409.6,1.07356969]
[1721233450323,5.18813,3412.1,3410.9,2.93176]
[1721233450633,2.2573,3412.1,3409.7,6.02277]
[1721233450775,2.2573,3412.1,3409.4,3.0]
[1721233450776,2.2573,3412.1,3409.8,5.93272]
[1721233451132,2.2573,3412.1,3409.9,2.93263]
[1721233451277,2.2573,3412.1,3411.0,2.9316]
[1721233451619,2.2573,3412.1,3411.1,2.9316]
[1721233451783,2.2573,3412.1,3409.8,3.0]
[1721233451784,2.2573,3412.1,3410.3,2.93228]
[1721233451987,2.93092,3411.9,3410.6,2.93201]
[1721233452621,2.2573,3412.1,3410.6,2.93201]
[1721233452922,2.2573,3412.1,3409.8,5.93271]
[1721233452923,2.93101,3411.8,3410.7,2.9319]
[1721233453130,2.93092,3411.9,3410.7,2.9319]
[1721233453131,2.93084,3412.0,3410.7,2.9319]
[1721233453338,2.2573,3412.1,3410.9,2.93176]
[1721233453478,2.2573,3412.1,3410.6,2.93203]
[1721233453479,2.931,3411.8,3410.6,2.93203]
[1721233453688,2.2573,3412.1,3410.0,2.93248]
[1721233453939,2.93135,3411.4,3410.0,2.93248]
[1721233454117,2.93118,3411.6,3409.3,2.275]
[1721233454314,5.931,3411.8,3410.5,2.93204]
[1721233454619,2.2573,3412.1,3410.9,2.93177]
[1721233454833,5.2573,3412.1,3410.9,2.93177]
[1721233455325,2.93084,3412.0,3410.9,2.93177]
[1721233455634,5.2573,3412.1,3410.9,2.93177]
[1721233455842,2.2573,3412.1,3411.6,2.93115]
[1721233456137,5.18804,3412.1,3411.1,2.93152]
[1721233456300,5.18804,3412.1,3411.1,2.93153]
[1721233456505,5.18804,3412.1,3411.0,2.93167]
[1721233456718,5.18804,3412.1,3410.1,5.93241]
[1721233456915,2.93092,3411.9,3410.6,2.93203]
[1721233457447,2.93092,3411.9,3410.2,3.593241]
[1721233457448,2.93083,3412.0,3411.0,2.93161]
[1721233457740,2.93083,3412.0,3410.9,2.93174]
[1721233458743,2.2573,3412.1,3409.6,2.93282]
[1721233459040,2.93152,3411.2,3410.0,2.93248]
[1721233459905,2.93152,3411.2,3410.3,2.93228]
[1721233460236,5.93097,3411.9,3409.6,2.93289]
[1721233460237,2.93187,3410.8,3409.6,2.93289]
[1721233460527,2.4388,3410.7,3409.9,2.93263]
[1721233460743,2.4388,3410.7,3409.7,2.93275]
[1721233460744,5.37075,3410.7,3409.7,2.93275]
[1721233461100,5.37075,3410.7,3409.8,2.93271]
[1721233462192,2.4388,3411.3,3409.8,0.58656]
[1721233462394,2.93152,3411.2,3410.2,2.93237]
[1721233462834,2.4388,3411.3,3410.6,2.93201]
[1721233463141,2.931,3411.8,3410.7,2.93192]
[1721233463438,2.93109,3411.7,3410.7,2.93192]
[1721233463647,2.4388,3411.9,3410.8,0.05863317]
[1721233463791,2.4388,3411.9,3410.9,3.23076632]
[1721233463991,5.36972,3411.9,3410.9,3.23076632]
[1721233464299,2.4388,3411.9,3411.2,2.93151]
[1721233465057,5.36923,3412.5,3411.3,2.93141]
[1721233465393,5.36923,3412.5,3410.9,0.29905632]
[1721233465394,2.4388,3412.5,3410.9,0.29905632]
[1721233465744,2.93073,3412.2,3411.1,2.93155]
[1721233465906,2.93073,3412.2,3411.2,2.93146]
[1721233465907,2.93078,3412.1,3411.2,2.93146]
[1721233466428,2.93078,3412.1,3411.0,2.93168]
[1721233466429,2.931,3411.9,3411.0,2.93168]
[1721233466636,5.86159,3412.1,3411.0,2.93168]
[1721233466848,2.4388,3412.5,3411.4,2.93127]
[1721233467005,2.93064,3412.3,3411.3,2.93142]
[1721233467209,5.36926,3412.5,3411.4,2.93127]
[1721233467406,5.36921,3412.5,3411.4,0.586269]
[1721233467820,5.36921,3412.5,3411.6,2.93116]
[1721233468135,2.93065,3412.3,3411.4,2.93134]
[1721233468433,2.4388,3412.5,3411.1,2.93154]
[1721233468798,2.93095,3411.9,3411.1,2.93154]
[1721233468996,2.93095,3411.9,3411.1,3.54778563]
[1721233469300,2.93057,3412.3,3411.3,2.93141]
[1721233469498,5.36921,3412.5,3411.5,2.93123]
[1721233469698,2.4388,3412.5,3411.5,2.93123]
[1721233470023,2.4388,3412.5,3411.1,0.61624563]
[1721233470024,5.22508,3413.1,3411.9,2.93084]
[1721233470200,2.2952,3413.1,3412.1,2.93073]
[1721233470531,2.2952,3413.1,3412.2,2.9306]
[1721233470732,2.2952,3413.1,3412.0,0.293084]
[1721233470902,2.2952,3413.1,3410.5,2.93211]
[1721233470903,2.93036,3412.6,3411.7,2.93104]
[1721233471437,2.93066,3412.2,3411.3,3.0]
[1721233471730,2.2952,3413.1,3411.3,0.65478356]
[1721233471934,2.93023,3412.7,3411.8,2.93096]
[1721233472231,2.93023,3412.7,3411.6,2.93116]
[1721233472603,2.2952,3413.1,3412.2,2.93058]
[1721233472803,2.2952,3413.1,3412.2,2.93063]
[1721233473137,2.92968,3413.4,3412.3,2.93051]
[1721233473343,2.92968,3413.4,3412.4,0.586114]
[1721233473905,2.92985,3413.2,3412.2,2.93057]
[1721233474813,2.93008,3412.9,3411.7,3.0]
[1721233475119,2.93015,3412.8,3411.7,5.93108]
[1721233475440,2.93044,3412.5,3411.4,2.93127]
[1721233475607,2.93051,3412.4,3411.4,2.93127]
[1721233475801,2.93051,3412.4,3411.2,2.93151]
[1721233475802,2.9305,3412.4,3411.3,2.9314]
[1721233476113,2.93062,3412.3,3411.3,3.517691]
[1721233476309,2.93075,3412.1,3411.3,0.586291]
[1721233476530,2.93062,3412.3,3411.3,0.586291]
[1721233476716,2.93093,3411.9,3411.1,2.93154]
[1721233477053,2.93097,3411.9,3411.0,2.93166]
[1721233477408,2.93079,3412.1,3411.1,5.93159]
[1721233477723,2.93098,3411.9,3411.1,3.0]
[1721233477923,2.93098,3411.9,3411.0,5.93167]
[1721233478126,2.93083,3412.0,3411.1,3.84784463]
[1721233478328,2.93069,3412.2,3411.2,3.0]
[1721233478544,2.93049,3412.4,3411.3,2.9314]
[1721233478707,2.93075,3412.1,3411.3,2.9314]
[1721233478902,2.93072,3412.2,3411.2,3.0]
[1721233479131,2.93072,3412.2,3411.4,2.93134]
[1721233479330,2.93072,3412.2,3411.3,0.39162546]
[1721233479331,2.93075,3412.1,3411.3,0.39162546]
[1721233479515,2.93072,3412.2,3411.2,2.93148]
[1721233479516,2.93088,3412.0,3411.2,2.93148]
[1721233479921,2.93088,3412.0,3410.9,3.23079632]
[1721233480206,2.93088,3412.0,3410.6,3.0]
[1721233480207,2.93122,3411.6,3411.0,3.0]
[1721233480523,2.93122,3411.6,3410.8,3.0]
[1721233481119,2.93105,3411.8,3410.8,5.93181]
[1721233481306,2.93068,3412.2,3411.2,2.93145]
[1721233481707,5.86142,3412.2,3411.3,2.93142]
[1721233481906,2.93076,3412.1,3411.1,2.93154]
[1721233482149,2.931,3411.8,3411.2,3.0]
[1721233482511,2.93084,3412.0,3411.2,2.93146]
[1721233482740,2.93084,3412.0,3411.1,2.93159]
[1721233482909,2.93084,3412.0,3411.2,3.0]
[1721233483111,2.931,3411.8,3411.2,3.0]
[1721233483332,2.93109,3411.7,3410.9,3.0]
[1721233483532,2.93109,3411.7,3411.0,0.593178]
[1721233484139,2.93092,3411.9,3411.0,0.593178]
[1721233484456,2.93128,3411.5,3410.3,2.93225]
[1721233484611,2.93128,3411.5,3410.1,2.93243]
[1721233484612,2.93153,3411.2,3410.1,2.93241]
[1721233484809,2.93153,3411.2,3409.9,2.9326]
[1721233484810,2.9316,3411.1,3409.9,2.93256]
[1721233485010,2.4894,3411.4,3410.0,2.93249]
[1721233485215,2.93188,3410.8,3409.7,2.93277]
[1721233485455,2.93188,3410.8,3408.6,0.35556764]
[1721233485456,2.93212,3410.5,3409.6,2.93286]
[1721233485832,2.93202,3410.7,3409.7,2.9328]
[1721233486143,2.93164,3411.1,3410.1,2.93245]
[1721233486325,2.93144,3411.3,3410.1,2.93245]
[1721233486528,2.93144,3411.3,3410.2,3.225535]
[1721233486718,2.93105,3411.8,3410.3,0.05863352]
[1721233486923,2.93105,3411.8,3410.9,2.93171]
[1721233486924,2.93107,3411.8,3410.9,2.93171]
[1721233487152,2.93092,3411.9,3410.7,2.93189]
[1721233487362,2.93132,3411.5,3410.3,5.93226]
[1721233487526,2.93077,3412.1,3410.3,5.93226]
[1721233487527,2.93121,3411.6,3410.3,4.1453675]
[1721233487740,2.93153,3411.2,3410.2,2.93236]
[1721233488063,2.93153,3411.2,3410.3,3.0]
[1721233488266,2.93196,3410.7,3408.9,3.11049442]
[1721233488559,2.93234,3410.3,3409.3,2.93307]
[1721233488730,2.93246,3410.1,3408.2,2.3431]
[1721233488927,0.55,3410.9,3408.2,2.3431]
[1721233488928,2.93281,3409.7,3408.6,2.93374]
[1721233489239,2.93295,3409.6,3408.6,2.93374]
[1721233489452,5.40604,3409.8,3408.7,2.93365]
[1721233489653,2.4733,3409.8,3408.7,2.93365]
[1721233489987,2.93296,3409.6,3408.6,2.93374]
[1721233490264,2.93299,3409.5,3408.7,0.586766]
[1721233490771,2.93307,3409.4,3408.4,2.9339]
[1721233491074,2.93307,3409.4,3408.3,0.23431]
[1721233491075,2.93299,3409.5,3408.5,2.93378]
[1721233491286,2.93299,3409.5,3408.3,3.1683]
[1721233491574,2.93314,3409.4,3408.4,5.93392]
[1721233491927,2.93258,3410.0,3408.4,3.0]
[1721233492122,2.93272,3409.8,3408.8,2.93351]
[1721233492348,2.93258,3410.0,3408.9,5.93349]
[1721233493334,2.93258,3410.0,3409.0,2.9334]
[1721233493830,2.93246,3410.1,3409.1,2.93332]
[1721233494025,2.93257,3410.0,3408.9,5.93347]
[1721233494230,2.93257,3410.0,3408.9,3.0]
[1721233494431,2.93257,3410.0,3408.8,3.0]
[1721233494861,2.933,3409.5,3408.8,3.0]
[1721233495069,2.93306,3409.4,3408.5,3.323431]
[1721233495641,2.93306,3409.4,3408.5,6.257261]
[1721233495844,2.93306,3409.4,3408.6,0.6491571]
[1721233496042,2.93334,3409.1,3408.0,5.86847]
[1721233496251,2.93311,3409.4,3407.8,2.93443]
[1721233496463,2.93311,3409.4,3407.7,2.93452]
[1721233496464,2.93363,3408.8,3407.7,2.93452]
[1721233496652,2.93382,3408.6,3407.4,2.93477]
[1721233496865,2.93393,3408.4,3407.0,2.5941]
[1721233497051,2.93393,3408.4,3407.1,0.55294]
[1721233497376,2.93401,3408.3,3407.3,2.93481]
[1721233497874,2.93401,3408.3,3407.4,2.93478]
[1721233498097,2.93369,3408.7,3407.5,2.93468]
[1721233498237,2.93399,3408.4,3407.5,2.93468]
[1721233498439,2.3582,3408.8,3407.6,0.586946]
[1721233498686,2.3582,3408.8,3407.7,2.93452]
[1721233498857,2.93369,3408.7,3407.7,2.93452]
[1721233499080,2.93351,3408.9,3407.8,2.93442]
[1721233499366,2.93351,3408.9,3407.9,2.93435]
[1721233499367,2.93359,3408.8,3407.9,2.93435]
[1721233499570,3.0,3409.3,3408.0,3.521097]
[1721233499571,2.93318,3409.3,3408.0,3.521097]
[1721233499777,2.93349,3408.9,3408.0,3.521097]
[1721233500091,2.9334,3409.1,3408.1,2.93412]
[1721233500288,2.93282,3409.7,3408.5,2.93375]
[1721233500442,2.933,3409.5,3408.5,2.93375]
[1721233500772,2.933,3409.5,3408.3,2.934]
[1721233500773,5.19451,3409.5,3408.3,2.934]
[1721233500977,2.9329,3409.6,3408.6,2.93375]
[1721233501144,2.93271,3409.9,3408.7,3.520418]
[1721233501344,2.93287,3409.7,3408.7,0.586758]
[1721233501647,2.93299,3409.5,3408.5,2.93383]
[1721233501843,2.93299,3409.5,3408.6,2.93375]
[1721233502043,5.2856,3410.1,3408.3,2.93393]
[1721233502044,2.93325,3409.2,3408.3,2.93393]
[1721233502247,2.93292,3409.6,3408.6,2.93373]
[1721233503343,2.93292,3409.6,3408.7,2.93366]
[1721233503651,2.93292,3409.6,3408.7,3.520403]
[1721233504259,2.3531,3410.1,3408.9,2.93347]
[1721233504466,2.3531,3410.1,3409.2,2.93322]
[1721233504467,2.93247,3410.1,3409.2,2.93322]
[1721233504690,2.93264,3409.9,3409.0,3.0]
[1721233505000,2.93308,3409.4,3408.4,2.93385]
[1721233505291,2.93308,3409.4,3408.5,3.0]
[1721233505504,2.93331,3409.2,3408.2,5.93407]
[1721233505787,2.93332,3409.1,3408.2,3.0]
[1721233506002,2.93332,3409.1,3408.2,2.93404]
[1721233506290,2.93332,3409.1,3408.3,3.0]
[1721233506855,2.93332,3409.1,3408.3,3.886822]
[1721233507458,2.93316,3409.3,3408.4,2.93392]
[1721233507800,2.93325,3409.2,3408.5,3.0]
[1721233507952,2.93299,3409.5,3408.6,2.93368]
[1721233508156,2.93311,3409.4,3408.5,3.0]
[1721233508509,2.93311,3409.4,3408.5,0.6820792]
[1721233508664,2.9333,3409.2,3408.4,3.0]
[1721233508873,2.4138,3409.7,3407.4,2.4446]
[1721233508874,2.93359,3408.8,3407.9,2.93434]
[1721233509090,2.93359,3408.8,3407.8,2.9344]
[1721233509312,2.93381,3408.6,3407.7,2.9345]
[1721233509616,2.9325,3410.1,3407.8,2.4027]
[1721233509769,2.93338,3409.1,3407.9,0.24027]
[1721233509982,2.93369,3408.7,3407.8,0.30662965]
[1721233510321,2.93369,3408.7,3407.7,2.93447]
[1721233510508,2.3841,3409.0,3407.8,2.93444]
[1721233510509,2.93376,3408.6,3407.8,2.93444]
[1721233511310,2.93376,3408.6,3407.5,2.93466]
[1721233511527,2.3841,3409.0,3407.1,3.48792]